fUSD/lending_fUSD_20250214
["ID","MTS","AMOUNT","RATE_DAILY","PERIOD"]
[353112319,1739563892561,-509.46,0.00014191,2]
[353112320,1739563892572,-1973.5,0.00014191,2]
[353112321,1739563892581,-1999.09,0.00014191,2]
[353112322,1739563892591,-1754.23,0.00014191,2]
[353112323,1739563892602,-722.58,0.00014191,2]
[353112324,1739563892612,-3163.54,0.00014191,2]
[353112325,1739563892622,-777.3,0.00014191,2]
[353112326,1739563892633,-500.0,0.00014191,2]
[353112327,1739563892643,-1081.68,0.00014191,2]
[353112328,1739563892653,-500.0,0.00014191,2]
[353112329,1739563892663,-3073.51,0.00014191,2]
[353112330,1739563892673,-1849.21,0.00014191,2]
[353112331,1739563892684,-1876.88,0.00014191,2]
[353112332,1739563892694,-1636.36,0.00014191,2]
[353112333,1739563892704,-684.82,0.00014191,2]
[353112334,1739563892714,-1258.75,0.00014191,2]
[353112335,1739563892725,-3451.8,0.00014191,2]
[353112336,1739563892735,-2313.09,0.00014191,2]
[353112337,1739563892746,-525.63,0.00014191,2]
[353112338,1739563892757,-500.0,0.00014191,2]
[353112339,1739563892768,-2440.88,0.00014191,2]
[353112340,1739563892779,-594.57,0.00014191,2]
[353112341,1739563892791,-731.72,0.00014191,2]
[353112342,1739563892802,-641.14,0.00014191,2]
[353112343,1739563892812,-2262.39,0.00014191,2]
[353112344,1739563892824,-500.0,0.00014191,2]
[353112345,1739563892835,-2756.09,0.00014191,2]
[353112346,1739563892846,-500.0,0.00014191,2]
[353112347,1739563892857,-565.96,0.00014191,2]
[353112348,1739563892868,-500.0,0.00014191,2]
[353112349,1739563892878,-455.01662145,0.00014191,2]
[353112350,1739563892888,-500.0,0.00014191,2]
[353112351,1739563892898,-500.0,0.00014191,2]
[353112352,1739563892908,-500.0,0.00014191,2]
[353112353,1739563892919,-1958.29,0.00014191,2]
[353112354,1739563892929,-1602.34,0.00014191,2]
[353112355,1739563892941,-500.0,0.00014191,2]
[353112356,1739563892951,-2803.98,0.00014191,2]
[353112357,1739563892962,-500.0,0.00014191,2]
[353112358,1739563892973,-835.64,0.00014191,2]
[353112359,1739563892983,-500.0,0.00014191,2]
[353112360,1739563892994,-4057.02,0.00014191,2]
[353112361,1739563893004,-2038.26,0.00014191,2]
[353112362,1739563893015,-1055.1,0.00014191,2]
[353112363,1739563893025,-1332.83,0.00014191,2]
[353112364,1739563893036,-1763.2,0.00014191,2]
[353112365,1739563893046,-505.77072821,0.00014191,2]
[353112366,1739563893056,-500.0,0.00014191,2]
[353112367,1739563893066,-3381.25,0.00014191,2]
[353112368,1739563893076,-500.0,0.00014191,2]
[353112369,1739563893087,-761.43,0.00014191,2]
[353112370,1739563893097,-3279.48,0.00014191,2]
[353112371,1739563893109,-2360.83,0.00014191,2]
[353112372,1739563893119,-1107.76,0.00014191,2]
[353112373,1739563893129,-151.0,0.00014191,2]
[353112374,1739563893139,-1488.96,0.00014191,2]
[353112375,1739563893163,-1740.63,0.00014191,2]
[353112376,1739563893176,-2817.958164,0.00014191,2]
[353112377,1739563893205,-99.001836,0.00014191,2]
[353112378,1739563893217,-510.34967584,0.00014191,2]
[353112379,1739563893229,-505.83479641,0.00014191,2]
[353112380,1739563893241,-1001.00255746,0.00014191,2]
[353112381,1739563893263,-502.72127381,0.00013698,2]
[353112382,1739563893275,-805.89744254,0.00014191,2]
[353112383,1739563893286,-5082.1,0.00014191,2]
[353112384,1739563893297,-713.2,0.00014191,2]
[353112385,1739563893307,-500.0,0.00014191,2]
[353112386,1739563893318,-2918.13,0.00014191,2]
[353112387,1739563893330,-6582.72,0.00014191,2]
[353112388,1739563893341,-1998.38,0.00014191,2]
[353112389,1739563893351,-500.0,0.00014191,2]
[353112390,1739563893362,-500.0,0.00014191,2]
[353112391,1739563893373,-190.712929,0.00014191,2]
[353112392,1739563893387,-913.59,0.00014191,2]
[353112393,1739563893399,-512.98165728,0.00014191,2]
[353112394,1739563893411,-3560.44,0.00014191,2]
[353112395,1739563893423,-190.712929,0.00014191,2]
[353112396,1739563893434,-500.0,0.00014191,2]
[353112397,1739563893446,-2986.15,0.00014191,2]
[353112398,1739563893458,-3033.09,0.00014191,2]
[353112399,1739563893469,-2105.33,0.00014191,2]
[353112400,1739563893480,-500.0,0.00014191,2]
[353112401,1739563893491,-1872.73,0.00014191,2]
[353112402,1739563893502,-5014.83,0.00014191,2]
[353112403,1739563893512,-4493.7,0.00014191,2]
[353112404,1739563893524,-1363.47,0.00014191,2]
[353112405,1739563893534,-500.0,0.00014191,2]
[353112406,1739563893547,-1318.39,0.00014191,2]
[353112407,1739563893559,-971.4284509,0.00014191,2]
[353112408,1739563893573,-1296.5115491,0.00014191,2]
[353112409,1739563893584,-749.42,0.00014191,2]
[353112410,1739563893595,-524.87,0.00014191,2]
[353112411,1739563893606,-500.0,0.00014191,2]
[353112412,1739563893617,-431.31095712,0.00014191,2]
[353112413,1739563893628,-1469.98,0.00014191,2]
[353112414,1739563893639,-151.0,0.00014191,2]
[353112415,1739563893657,-1576.63,0.00014191,2]
[353112416,1739563893670,-500.0,0.00014191,2]
[353112417,1739563893682,-2020.040466,0.00014191,2]
[353112418,1739563893694,-3629.53,0.00014191,2]
[353112419,1739563893705,-1206.13,0.00014191,2]
[353112420,1739563893716,-500.0,0.00014191,2]
[353112421,1739563893726,-946.36,0.00014191,2]
[353112422,1739563893737,-500.0,0.00014191,2]
[353112423,1739563893749,-2020.040466,0.00014191,2]
[353112424,1739563893760,-537.54,0.00014191,2]
[353112425,1739563893771,-3171.97,0.00014191,2]
[353112426,1739563893782,-500.0,0.00014191,2]
[353112427,1739563893794,-730.7569483,0.00014191,2]
[353112428,1739563893808,-1895.7330517,0.00014191,2]
[353112429,1739563893820,-588.06,0.00014191,2]
[353112430,1739563893831,-773.79,0.00014191,2]
[353112431,1739563893843,-416.15215578,0.00014191,2]
[353112432,1739563893856,-83.84784422,0.00014191,2]
[353112433,1739563893868,-2568.77,0.00014191,2]
[353112434,1739563893880,-500.0,0.00014191,2]
[353112435,1739563893891,-1944.99,0.00014191,2]
[353112436,1739563893904,-4608.6,0.00014191,2]
[353112437,1739563893916,-500.0,0.00014191,2]
[353112438,1739563893927,-1710.92,0.00014191,2]
[353112439,1739563893939,-2526.46,0.00014191,2]
[353112440,1739563893951,-2579.87,0.00014191,2]
[353112441,1739563893963,-500.0,0.00014191,2]
[353112442,1739563893975,-3705.69,0.00014191,2]
[353112443,1739563893987,-500.0,0.00014191,2]
[353112444,1739563893999,-500.0,0.00014191,2]
[353112445,1739563894010,-500.0,0.00014191,2]
[353112446,1739563894022,-3939.13,0.00014191,2]
[353112447,1739563894033,-3249.7,0.00014191,2]
[353112448,1739563894044,-1898.28,0.00014191,2]
[353112449,1739563894056,-3126.6,0.00014191,2]
[353112450,1739563894068,-2747.99,0.00014191,2]
[353112451,1739563894078,-508.99,0.00014191,2]
[353112452,1739563894090,-5009.47,0.00014191,2]
[353112453,1739563894102,-500.0,0.00014191,2]
[353112454,1739563894114,-2056.13,0.00014191,2]
[353112455,1739563894126,-751.62,0.00014191,2]
[353112456,1739563894137,-500.0,0.00014191,2]
[353112457,1739563894154,-500.0,0.00014191,2]
[353112458,1739563894167,-3402.8,0.00014191,2]
[353112459,1739563894179,-3505.75,0.00014191,2]
[353112460,1739563894191,-3153.08,0.00014191,2]
[353112461,1739563894499,-2558.24,0.00014191,2]
[353112462,1739563894510,-500.0,0.00014191,2]
[353112463,1739563894519,-1719.88,0.00014191,2]
[353112464,1739563894529,-1199.35,0.00014191,2]
[353112465,1739563894541,-608.55,0.00014191,2]
[353112466,1739563894552,-500.0,0.00014191,2]
[353112467,1739563894566,-2029.74,0.00014191,2]
[353112468,1739563894576,-3172.24,0.00014191,2]
[353112469,1739563894586,-982.33,0.00014191,2]
[353112470,1739563894596,-1260.25,0.00014191,2]
[353112471,1739563894606,-3830.7,0.00014191,2]
[353112472,1739563894616,-712.2,0.00014191,2]
[353112473,1739563894626,-500.0,0.00014191,2]
[353112474,1739563894637,-152.712513,0.00014191,2]
[353112475,1739563894647,-4128.85,0.00014191,2]
[353112476,1739563894657,-1339.72,0.00014191,2]
[353112477,1739563894667,-960.59,0.00014191,2]
[353112478,1739563894678,-1280.89,0.00014191,2]
[353112479,1739563894689,-500.0,0.00014191,2]
[353112480,1739563894699,-4003.52,0.00014191,2]
[353112481,1739563894710,-4835.24,0.00014191,2]
[353112482,1739563894720,-500.0,0.00014191,2]
[353112483,1739563894731,-3628.74,0.00014191,2]
[353112484,1739563894742,-5779.5,0.00014191,2]
[353112485,1739563894753,-500.0,0.00014191,2]
[353112486,1739563894763,-888.5,0.00014191,2]
[353112487,1739563894774,-8834.81,0.00014191,2]
[353112488,1739563894784,-872.5,0.00014191,2]
[353112489,1739563894799,-500.0,0.00014191,2]
[353112490,1739563894809,-500.0,0.00014191,2]
[353112491,1739563894820,-2332.51,0.00014191,2]
[353112492,1739563894830,-1034.36,0.00014191,2]
[353112493,1739563894840,-2184.82,0.00014191,2]
[353112494,1739563894851,-554.07,0.00014191,2]
[353112495,1739563894861,-1987.19,0.00014191,2]
[353112496,1739563894871,-4912.6,0.00014191,2]
[353112497,1739563894882,-1097.4,0.00014191,2]
[353112498,1739563894892,-500.0,0.00014191,2]
[353112499,1739563894903,-3020.58,0.00014191,2]
[353112500,1739563894914,-1083.99,0.00014191,2]
[353112501,1739563894924,-1064.67,0.00014191,2]
[353112502,1739563894935,-1015.72,0.00014191,2]
[353112503,1739563894945,-151.0,0.00014191,2]
[353112504,1739563894956,-3463.46,0.00014191,2]
[353112505,1739563894966,-743.74,0.00014191,2]
[353112506,1739563894976,-672.87,0.00014191,2]
[353112507,1739563894986,-2341.5,0.00014191,2]
[353112508,1739563894996,-500.0,0.00014191,2]
[353112509,1739563895006,-585.95,0.00014191,2]
[353112510,1739563895017,-1938.45,0.00014191,2]
[353112511,1739563895027,-1204.22,0.00014191,2]
[353112512,1739563895038,-622.41,0.00014191,2]
[353112513,1739563895048,-500.0,0.00014191,2]
[353112514,1739563895058,-2500.0,0.000142,2]
[353112515,1739563895068,-1900.0,0.000142,2]
[353112516,1739563895079,-616.46,0.000142,2]
[353112517,1739563895101,-167.02,0.00014201,2]
[353112518,1739563895114,-804.09812113,0.00014217,2]
[353112519,1739563895125,-150.0,0.00014217,2]
[353112520,1739563895138,-500.0,0.00014217,2]
[353112521,1739563895149,-500.0,0.00014218,2]
[353112522,1739563895161,-985.0,0.00014218,2]
[353112523,1739563895172,-873.73273054,0.00014237,2]
[353112524,1739563895184,-150.0,0.00014239,2]
[353112525,1739563895195,-256.00024691,0.00014245,2]
[353112526,1739563895206,-569.63436721,0.00014245,2]
[353112527,1739563895216,-1289.28027,0.0001425,2]
[353112528,1739563895226,-429.75815376,0.00014256,2]
[353112529,1739563895236,-2000.0,0.00014272,2]
[353112530,1739563895247,-151.0,0.00014272,2]
[353112531,1739563895258,-151.0,0.00014272,2]
[353112532,1739563895268,-151.0,0.00014272,2]
[353112533,1739563895279,-151.0,0.00014272,2]
[353112534,1739563895291,-151.0,0.00014272,2]
[353112535,1739563895303,-500.0,0.00014272,2]
[353112536,1739563895312,-4729.03,0.00014272,2]
[353112537,1739563895323,-1043.05,0.00014272,2]
[353112538,1739563895335,-2256.26,0.00014272,2]
[353112539,1739563895346,-151.0,0.00014272,2]
[353112540,1739563895357,-2819.79,0.00014272,2]
[353112541,1739563895368,-3904.0,0.00014272,2]
[353112542,1739563895382,-2371.08,0.00014272,2]
[353112543,1739563895393,-3464.8,0.00014272,2]
[353112544,1739563895404,-683.71,0.00014272,2]
[353112545,1739563895415,-1290.27,0.00014272,2]
[353112546,1739563895427,-3268.9,0.00014272,2]
[353112547,1739563895438,-500.0,0.00014272,2]
[353112548,1739563895448,-500.0,0.00014273,2]
[353112549,1739563895459,-500.0,0.00014273,2]
[353112550,1739563895470,-500.0,0.00014273,2]
[353112551,1739563895480,-500.0,0.00014273,2]
[353112552,1739563895490,-942.67,0.00014273,2]
[353112553,1739563895501,-676.71,0.00014273,2]
[353112554,1739563895512,-697.37,0.00014273,2]
[353112555,1739563895522,-500.0,0.00014273,2]
[353112556,1739563895532,-921.36,0.00014273,2]
[353112557,1739563895545,-500.0,0.00014273,2]
[353112558,1739563895555,-739.46,0.00014273,2]
[353112559,1739563895566,-500.0,0.00014273,2]
[353112560,1739563895576,-500.0,0.00014273,2]
[353112561,1739563895586,-500.0,0.00014273,2]
[353112562,1739563895597,-616.46,0.00014273,2]
[353112563,1739563895614,-742.2,0.00014273,2]
[353112564,1739563895625,-628.42,0.00014273,2]
[353112565,1739563895635,-505.86,0.00014273,2]
[353112566,1739563895645,-569.87,0.00014273,2]
[353112567,1739563895656,-879.66,0.00014273,2]
[353112568,1739563895667,-500.0,0.00014273,2]
[353112569,1739563895678,-500.0,0.00014273,2]
[353112570,1739563895688,-500.0,0.00014273,2]
[353112571,1739563895699,-500.0,0.00014273,2]
[353112572,1739563895709,-500.0,0.00014273,2]
[353112573,1739563895720,-843.42,0.00014273,2]
[353112574,1739563895730,-500.0,0.00014273,2]
[353112575,1739563895741,-500.0,0.00014273,2]
[353112576,1739563895751,-500.0,0.00014273,2]
[353112577,1739563895761,-500.0,0.00014273,2]
[353112578,1739563895772,-856.63,0.00014273,2]
[353112579,1739563895783,-500.0,0.00014273,2]
[353112580,1739563895794,-661.56,0.00014273,2]
[353112581,1739563895805,-500.0,0.00014273,2]
[353112582,1739563895815,-500.0,0.00014273,2]
[353112583,1739563895826,-500.0,0.00014273,2]
[353112584,1739563895836,-531.99,0.00014273,2]
[353112585,1739563895847,-500.0,0.00014273,2]
[353112586,1739563895857,-621.27495369,0.00014273,2]
[353112587,1739563895867,-500.0,0.00014273,2]
[353112588,1739563895878,-625.08,0.00014273,2]
[353112589,1739563895889,-853.7,0.00014273,2]
[353112590,1739563895900,-500.0,0.00014273,2]
[353112591,1739563895910,-335.67904777,0.00014273,2]
[353112592,1739563895920,-500.0,0.00014273,2]
[353112593,1739563895931,-676.98,0.00014273,2]
[353112594,1739563895941,-500.0,0.00014273,2]
[353112595,1739563895952,-500.0,0.00014273,2]
[353112596,1739563895962,-500.0,0.00014273,2]
[353112597,1739563895973,-500.0,0.00014273,2]
[353112598,1739563895984,-950.09,0.00014273,2]
[353112599,1739563895994,-668.29,0.00014273,2]
[353112600,1739563896005,-500.0,0.00014273,2]
[353112601,1739563896016,-500.0,0.00014273,2]
[353112602,1739563896026,-660.92,0.00014273,2]
[353112603,1739563896037,-995.95,0.00014273,2]
[353112604,1739563896047,-500.0,0.00014273,2]
[353112605,1739563896058,-500.0,0.00014273,2]
[353112606,1739563896068,-1709.4,0.00014273,2]
[353112607,1739563896079,-500.0,0.00014273,2]
[353112608,1739563896089,-500.0,0.00014273,2]
[353112609,1739563896099,-500.0,0.00014273,2]
[353112610,1739563896114,-500.0,0.00014273,2]
[353112611,1739563896125,-500.0,0.00014273,2]
[353112612,1739563896135,-523.35,0.00014273,2]
[353112613,1739563896146,-500.0,0.00014273,2]
[353112614,1739563896156,-500.0,0.00014273,2]
[353112615,1739563896166,-500.0,0.00014273,2]
[353112616,1739563896176,-1180.81,0.00014273,2]
[353112617,1739563896187,-500.0,0.00014273,2]
[353112618,1739563896197,-755.13,0.00014273,2]
[353112619,1739563896208,-500.0,0.00014273,2]
[353112620,1739563896218,-389.84402947,0.00014273,2]
[353112621,1739563896229,-1199.62,0.00014273,2]
[353112622,1739563896240,-631.11,0.00014273,2]
[353112623,1739563896250,-1064.28,0.00014273,2]
[353112624,1739563896260,-1531.24,0.00014273,2]
[353112625,1739563896270,-500.0,0.00014273,2]
[353112626,1739563896280,-500.0,0.00014273,2]
[353112627,1739563896291,-500.0,0.00014273,2]
[353112628,1739563896302,-1025.43,0.00014273,2]
[353112629,1739563896312,-2028.79,0.00014273,2]
[353112630,1739563896323,-500.0,0.00014273,2]
[353112631,1739563896333,-500.0,0.00014273,2]
[353112632,1739563896343,-509.55473289,0.00014273,2]
[353112633,1739563896354,-151.0,0.00014273,2]
[353112634,1739563896363,-500.0,0.00014273,2]
[353112635,1739563896374,-758.5,0.00014273,2]
[353112636,1739563896388,-1698.76,0.00014273,2]
[353112637,1739563896398,-804.17,0.00014273,2]
[353112638,1739563896408,-500.0,0.00014273,2]
[353112639,1739563896418,-1295.63,0.00014273,2]
[353112640,1739563896429,-500.0,0.00014273,2]
[353112641,1739563896438,-507.67,0.00014273,2]
[353112642,1739563896448,-1117.17,0.00014273,2]
[353112643,1739563896460,-688.3,0.00014273,2]
[353112644,1739563896471,-500.0,0.00014273,2]
[353112645,1739563896481,-836.44,0.00014273,2]
[353112646,1739563896491,-1041.16,0.00014273,2]
[353112647,1739563896500,-500.0,0.00014273,2]
[353112648,1739563896510,-852.14,0.00014273,2]
[353112649,1739563896520,-1937.88,0.00014273,2]
[353112650,1739563896530,-521.91847916,0.00014273,2]
[353112651,1739563896540,-1330.27,0.00014273,2]
[353112652,1739563896551,-500.0,0.00014273,2]
[353112653,1739563896561,-575.1,0.00014273,2]
[353112654,1739563896571,-2044.64,0.00014273,2]
[353112655,1739563896581,-642.84,0.00014273,2]
[353112656,1739563896592,-2030.11,0.00014273,2]
[353112657,1739563896602,-698.08,0.00014273,2]
[353112658,1739563896612,-798.39,0.00014273,2]
[353112659,1739563896622,-590.2841994,0.00014273,2]
[353112660,1739563896636,-2250.74,0.00014273,2]
[353112661,1739563896646,-1404.78,0.00014273,2]
[353112662,1739563896656,-518.2974952,0.00014273,2]
[353112663,1739563896666,-462.15630706,0.00014273,2]
[353112664,1739563896675,-796.51,0.00014273,2]
[353112665,1739563896685,-500.0,0.00014273,2]
[353112666,1739563896695,-500.0,0.00014273,2]
[353112667,1739563896705,-1623.37,0.00014273,2]
[353112668,1739563896715,-501.26,0.00014273,2]
[353112669,1739563896726,-883.87,0.00014273,2]
[353112670,1739563896735,-500.0,0.00014273,2]
[353112671,1739563896745,-500.0,0.00014273,2]
[353112672,1739563896755,-784.8,0.00014273,2]
[353112673,1739563896765,-623.91,0.00014273,2]
[353112674,1739563896774,-505.25,0.00014273,2]
[353112675,1739563896784,-962.51,0.00014273,2]
[353112676,1739563896794,-500.0,0.00014273,2]
[353112677,1739563896804,-500.0,0.00014273,2]
[353112678,1739563896813,-721.61,0.00014273,2]
[353112679,1739563896823,-825.62,0.00014273,2]
[353112680,1739563896833,-784.42,0.00014273,2]
[353112681,1739563896843,-500.0,0.00014273,2]
[353112682,1739563896852,-1808.0,0.00014273,2]
[353112683,1739563896862,-1280.46,0.00014273,2]
[353112684,1739563896871,-500.0,0.00014273,2]
[353112685,1739563896881,-607.26,0.00014273,2]
[353112686,1739563896891,-1169.14,0.00014273,2]
[353112687,1739563896902,-500.0,0.00014273,2]
[353112688,1739563896913,-500.0,0.00014273,2]
[353112689,1739563896923,-500.0,0.00014273,2]
[353112690,1739563896933,-1613.47,0.00014273,2]
[353112691,1739563896943,-500.0,0.00014273,2]
[353112692,1739563896953,-500.0,0.00014273,2]
[353112693,1739563896963,-500.0,0.00014273,2]
[353112694,1739563896973,-1107.07,0.00014273,2]
[353112695,1739563896985,-152.60139,0.00014273,2]
[353112696,1739563896995,-967.62,0.00014273,2]
[353112697,1739563897006,-754.08,0.00014273,2]
[353112698,1739563897015,-606.58,0.00014273,2]
[353112699,1739563897025,-500.0,0.00014273,2]
[353112700,1739563897035,-1281.16,0.00014273,2]
[353112701,1739563897047,-500.0,0.00014273,2]
[353112702,1739563897057,-663.92,0.00014273,2]
[353112703,1739563897067,-500.0,0.00014273,2]
[353112704,1739563897078,-500.0,0.00014273,2]
[353112705,1739563897088,-500.0,0.00014273,2]
[353112706,1739563897098,-854.68,0.00014273,2]
[353112707,1739563897109,-897.34,0.00014273,2]
[353112708,1739563897119,-1076.86,0.00014273,2]
[353112709,1739563897129,-1280.76,0.00014273,2]
[353112710,1739563897139,-612.38,0.00014273,2]
[353112711,1739563897149,-500.0,0.00014273,2]
[353112712,1739563897159,-603.04,0.00014273,2]
[353112713,1739563897169,-1338.87,0.00014273,2]
[353112714,1739563897178,-607.73,0.00014273,2]
[353112715,1739563897188,-245.97022318,0.00014273,2]
[353112716,1739563897198,-934.27,0.00014273,2]
[353112717,1739563897207,-500.0,0.00014273,2]
[353112718,1739563897217,-500.0,0.00014273,2]
[353112719,1739563897227,-500.0,0.00014273,2]
[353112720,1739563897238,-577.53,0.00014273,2]
[353112721,1739563897247,-1672.07,0.00014273,2]
[353112722,1739563897257,-907.46,0.00014273,2]
[353112723,1739563897267,-1068.63,0.00014273,2]
[353112724,1739563897278,-575.49,0.00014273,2]
[353112725,1739563897288,-668.43,0.00014273,2]
[353112726,1739563897300,-500.0,0.00014273,2]
[353112727,1739563897310,-572.87,0.00014273,2]
[353112728,1739563897331,-738.25,0.00014273,2]
[353112729,1739563897342,-500.0,0.00014273,2]
[353112730,1739563897352,-1304.96,0.00014273,2]
[353112731,1739563897362,-500.0,0.00014273,2]
[353112732,1739563897374,-883.57,0.00014273,2]
[353112733,1739563897386,-500.0,0.00014273,2]
[353112734,1739563897396,-500.0,0.00014273,2]
[353112735,1739563897407,-500.0,0.00014273,2]
[353112736,1739563897418,-500.0,0.00014273,2]
[353112737,1739563897428,-618.98,0.00014273,2]
[353112738,1739563897438,-318.96199344,0.00014273,2]
[353112739,1739563897448,-573.63,0.00014273,2]
[353112740,1739563897459,-640.68,0.00014273,2]
[353112741,1739563897470,-500.0,0.00014273,2]
[353112742,1739563897480,-500.0,0.00014273,2]
[353112743,1739563897491,-500.0,0.00014273,2]
[353112744,1739563897500,-500.0,0.00014273,2]
[353112745,1739563897511,-991.46,0.00014273,2]
[353112746,1739563897521,-698.97,0.00014273,2]
[353112747,1739563897532,-984.87,0.00014273,2]
[353112748,1739563897546,-1209.25,0.00014273,2]
[353112749,1739563897557,-525.62,0.00014273,2]
[353112750,1739563897567,-500.0,0.00014273,2]
[353112751,1739563897577,-500.0,0.00014273,2]
[353112752,1739563897587,-536.36,0.00014273,2]
[353112753,1739563897597,-877.73,0.00014273,2]
[353112754,1739563897607,-1372.53,0.00014273,2]
[353112755,1739563897618,-1335.45,0.00014273,2]
[353112756,1739563897629,-500.0,0.00014273,2]
[353112757,1739563897640,-500.0,0.00014273,2]
[353112758,1739563897651,-519.4,0.00014273,2]
[353112759,1739563897662,-500.0,0.00014273,2]
[353112760,1739563897674,-500.0,0.00014273,2]
[353112761,1739563897684,-500.0,0.00014273,2]
[353112762,1739563897694,-814.24,0.00014273,2]
[353112763,1739563897704,-893.93,0.00014273,2]
[353112764,1739563897713,-500.0,0.00014273,2]
[353112765,1739563897724,-980.55,0.00014273,2]
[353112766,1739563897734,-500.0,0.00014273,2]
[353112767,1739563897744,-2647.93,0.00014273,2]
[353112768,1739563897755,-624.08,0.00014273,2]
[353112769,1739563897766,-500.0,0.00014273,2]
[353112770,1739563897777,-585.87,0.00014273,2]
[353112771,1739563897786,-706.55,0.00014273,2]
[353112772,1739563897801,-1360.96,0.00014273,2]
[353112773,1739563897812,-579.67,0.00014273,2]
[353112774,1739563897824,-500.0,0.00014273,2]
[353112775,1739563897835,-500.0,0.00014273,2]
[353112776,1739563897845,-500.0,0.00014273,2]
[353112777,1739563897855,-902.8,0.00014273,2]
[353112778,1739563897865,-610.71,0.00014273,2]
[353112779,1739563897876,-1001.64,0.00014273,2]
[353112780,1739563897886,-500.0,0.00014273,2]
[353112781,1739563897898,-776.75,0.00014273,2]
[353112782,1739563897909,-987.29,0.00014273,2]
[353112783,1739563897920,-500.0,0.00014273,2]
[353112784,1739563897931,-919.94,0.00014273,2]
[353112785,1739563897943,-728.31,0.00014273,2]
[353112786,1739563897954,-581.83,0.00014273,2]
[353112787,1739563897965,-975.51,0.00014273,2]
[353112788,1739563897976,-1504.69,0.00014273,2]
[353112789,1739563897987,-500.0,0.00014273,2]
[353112790,1739563897997,-500.0,0.00014273,2]
[353112791,1739563898008,-1633.3,0.00014273,2]
[353112792,1739563898019,-518.74,0.00014273,2]
[353112793,1739563898030,-622.4,0.00014273,2]
[353112794,1739563898043,-500.0,0.00014273,2]
[353112795,1739563898055,-823.68,0.00014273,2]
[353112796,1739563898067,-848.64,0.00014273,2]
[353112797,1739563898077,-500.0,0.00014273,2]
[353112798,1739563898087,-500.0,0.00014273,2]
[353112799,1739563898097,-1282.24,0.00014273,2]
[353112800,1739563898107,-500.0,0.00014273,2]
[353112801,1739563898118,-500.0,0.00014273,2]
[353112802,1739563898128,-1711.64,0.00014273,2]
[353112803,1739563898138,-787.78,0.00014273,2]
[353112804,1739563898148,-500.0,0.00014273,2]
[353112805,1739563898159,-500.0,0.00014273,2]
[353112806,1739563898169,-500.0,0.00014273,2]
[353112807,1739563898179,-500.0,0.00014273,2]
[353112808,1739563898189,-500.0,0.00014273,2]
[353112809,1739563898479,-878.18,0.00014273,2]
[353112810,1739563898490,-500.0,0.00014273,2]
[353112811,1739563898500,-663.1,0.00014273,2]
[353112812,1739563898511,-1374.74,0.00014273,2]
[353112813,1739563898522,-500.0,0.00014273,2]
[353112814,1739563898532,-1402.88,0.00014273,2]
[353112815,1739563898542,-1965.42,0.00014273,2]
[353112816,1739563898552,-500.0,0.00014273,2]
[353112817,1739563898563,-500.0,0.00014273,2]
[353112818,1739563898572,-822.86,0.00014273,2]